[Event "Frauenbundesliga 2024-25"]
[Site "Germany"]
[Date "2025.01.25"]
[Round "3.2"]
[White "Kiolbasa, Oliwia"]
[Black "Wagner, Dinara"]
[Result "1/2-1/2"]
[Annotator "TA"]
[ECO "C50"]
[WhiteElo "2357"]
[BlackElo "2437"]
[PlyCount "116"]
[EventDate "2024.11.06"]
[EventType "team-tourn"]
[EventCountry "GER"]
[SourceTitle "playchess.com"]
[Source "ChessBase"]
[SourceQuality "1"]
[WhiteTeam "Bad Koenigshofen"]
[BlackTeam "Baden-Baden"]
[TimeControl "40/5400+30:1800+30"]

{[%evp 9,116,15,17,14,34,13,15,25,19,12,11,10,16,8,13,0,0,0,0,0,0,0,0,-5,-6,-18,43,8,44,0,32,6,18,0,0,0,0,0,0,6,7,14,12,0,0,-7,0,0,0,-11,-4,-10,-2,-7,-12,-18,-7,0,0,0,-2,0,0,0,0,0,0,0,0,0,0,-43,-31,-32,-36,-56,-26,-29,-28,-36,-39,-36,-17,-42,-33,-46,0,-125,-145,-111,-133,-535,0,0,0,-72,-71,-70,0,0,0,0,0,0,0,0,0,0,0]} 1. e4 {[%emt 0:00:15]} e5 {[%emt 0:00:21]} 2. Nf3 {[%emt 0:00:08]} Nc6 {[%emt 0:00:03]} 3. Bc4 {[%emt 0:00:33]} Bc5 {[%emt 0:00:07]} 4. d3 {[%emt 0:00:24]} Nf6 {[%emt 0:00:05]} 5. a4 {[%emt 0:00:25]} a6 {[%emt 0:00:44]} 6. c3 {[%emt 0:03:33] C50: Hungarian Defence and Giuoco Pianissimo.} d6 {[%emt 0:00:09]} 7. a5 {[%emt 0:00:42]} Ba7 {[%emt 0:00:12]} 8. O-O {[%emt 0:06:21]} O-O {[%emt 0:00:26]} 9. Be3 {[%emt 0:00:23]} Bxe3 {[%emt 0:07:17]} 10. fxe3 {[%emt 0:00:12]} Ne7 {[%emt 0:00:14]} 11. Nbd2 {[%emt 0:07:48]} Ng6 {[%emt 0:01:03]} 12. b4 {[%emt 0:00:07]} b5 {[%emt 0:06:51]} 13. axb6 {[%emt 0:06:59]} cxb6 {[%emt 0:00:02]} 14. Bb3 $146 {[%emt 0:00:08]} (14. d4 Bb7 15. d5 Qc7 16. Rc1 a5 17. Bd3 Rfb8 18. h3 Bc8 19. Kh2 Bd7 20. Qe2 {1-0 Aronian,L (2725)-Lysyj,I (2589) Chessable Play In Match D2 rapid 2024 (2.1)}) 14... d5 {[%emt 0:26:52]} 15. exd5 {[%emt 0:17:24]} Nxd5 {[%emt 0:00:17]} 16. Nc4 {[%emt 0:00:21]} Be6 {[%emt 0:13:41] [#]} 17. Qe1 {[%emt 0:09:29]} f6 {[%emt 0:02:01]} (17... Nf6 $11) 18. g3 {[%emt 0:09:48]} b5 {[%emt 0:07:32]} 19. Ncd2 {[%emt 0:02:15][%cal Bc4d2,Bd2e4,Be4c5][%mdl 32]} Nc7 {[%emt 0:07:50]} 20. Qe2 {[%emt 0:00:56]} Qd7 {[%emt 0:02:33]} 21. Bc2 {[%emt 0:07:42]} Bg4 {[%emt 0:05:10]} 22. Ne4 {[%emt 0:03:51]} Qc6 {[%emt 0:02:29]} 23. Qg2 {[%emt 0:06:22]} Nd5 {[%emt 0:01:33]} 24. Bb3 {[%emt 0:00:21]} Kh8 {[%emt 0:00:42][%csl LRc3,LRe3]} 25. Bxd5 {[%emt 0:02:05]} Qxd5 {[%emt 0:00:03]} 26. Nc5 {[%emt 0:00:06]} a5 {[%emt 0:01:21] [#]} 27. Nd2 {[%emt 0:03:31] Excellent horsemanship.} Qxg2+ {[%emt 0:00:32]} 28. Kxg2 {[%emt 0:00:02]} axb4 {[%emt 0:00:55]} 29. cxb4 {[%emt 0:00:11]} Ne7 {[%emt 0:00:06]} 30. h3 {[%emt 0:06:10]} Bh5 {[%emt 0:00:28]} 31. Ra5 {[%emt 0:00:24]} Nd5 {[%emt 0:01:12][%csl LRb4,LRe3]} 32. Rfa1 {[%emt 0:00:23]} Rac8 {[%emt 0:02:12]} (32... Nxe3+ 33. Kf2 Rxa5 34. bxa5 $15) 33. Rxb5 {[%emt 0:01:30]} Nxe3+ {[%emt 0:05:29]} 34. Kf2 {[%emt 0:00:11]} Nc2 {[%emt 0:00:49]} 35. Raa5 {[%emt 0:00:25]} Nd4 {[%emt 0:02:25]} 36. Rb6 {[%emt 0:01:44]} h6 {[%emt 0:02:31]} 37. Nde4 {[%emt 0:00:59]} Rb8 {[%emt 0:01:45]} 38. Rxb8 {[%emt 0:02:03]} Rxb8 {[%emt 0:00:03]} 39. Na6 {[%emt 0:00:06]} Rb6 {[%emt 0:00:28]} 40. Nec5 {[%emt 0:01:58]} Nc6 {[%emt 0:01:03]} 41. Ra4 {[%emt 0:03:06]} Bf7 {[%emt 0:09:17]} 42. Nd7 {[%emt 0:18:15]} Rb7 {[%emt 0:01:06]} 43. Nac5 {[%emt 0:01:18]} Rxb4 {[%emt 0:01:37]} 44. Ra8+ {[%emt 0:00:31]} Bg8 {[%emt 0:00:52]} 45. g4 {[%emt 0:06:40]} h5 {[%emt 0:04:24]} 46. Ne4 {[%emt 0:00:12]} Rd4 {[%emt 0:13:05][%csl LRd3,LRd7]} 47. Nf8 {[%emt 0:00:05]} Nb4 {[%emt 0:02:21]} (47... Rxd3 $15 48. g5 Bb3 (48... Rxh3 49. Ng6+ Kh7 50. Nf8+ Kh8 51. Ng6+ Kh7 52. Nf8+ Kh8 $18)) 48. gxh5 {[%emt 0:02:55]} (48. Ne6 $1 $11 {was the only way to keep the balance.}) 48... Nxd3+ $17 {[%emt 0:00:11]} (48... Rxd3 $6 49. Ng6+ Kh7 50. Nf8+ Kh6 51. Ne6 $11) 49. Ke3 {[%emt 0:00:01]} Nb4 {[%emt 0:00:17][%cal Od4e4] And now ...Rxe4+! would win.} 50. Ra7 $2 {[%emt 0:02:17][%mdl 8192]} (50. Ng3 $17 {is tougher.}) 50... Bd5 $2 {[%emt 0:01:53]} (50... Nc2+ $19 51. Kf2 Rxe4) 51. Ng6+ $11 {[%emt 0:00:29]} Kg8 {[%emt 0:00:04]} 52. Nd6 {[%emt 0:01:00]} (52. Ne7+ $11 {remains equal.} Kh8 53. Ng6+ Kg8 54. Ne7+) 52... Rd3+ $17 {[%emt 0:00:34]} 53. Kf2 {[%emt 0:01:12]} Rxh3 {[%emt 0:00:30]} ({Better is} 53... Kh7 $15 54. Ne8 Kh6 (54... Rxh3 55. Nxf6+ Kh6 56. Ng4+ Kxh5 57. N6xe5 $11) 55. Rxg7 Rxh3) 54. Nf5 $1 $11 {[%emt 0:00:27][%csl Gf5][%cal Ra7g7] The position is equal.} Nd3+ {[%emt 0:01:00]} (54... Rxh5 55. Rxg7#) 55. Ke2 {[%emt 0:00:41][%csl Gf5][%cal Ra7g7]} Nf4+ $1 {[%emt 0:00:15]} ({Stronger than} 55... Rxh5 56. Rxg7#) (55... Nc1+ 56. Ke1 Rh1+ (56... Rxh5 57. Rxg7#) 57. Kd2 Rh2+ (57... Rxh5 58. Rxg7#) (57... Nb3+ $2 58. Kc3 $18) 58. Kxc1 Rh1+ 59. Kd2 Rh2+ 60. Ke1 Rh1+ 61. Kf2 Rh2+ 62. Kg3 Rg2+ 63. Kh3 Rxg6 64. hxg6) 56. Nxf4 {[%emt 0:00:19]} Bc4+ {[%emt 0:00:33]} 57. Kf2 {[%emt 0:00:21]} exf4 {[%emt 0:00:04]} 58. Rxg7+ {[%emt 0:00:15]} Kf8 {[%emt 0:01:11] Weighted Error Value: White=0.24 (precise) /Black=0.19 (very precise)   Loses game:     	White=1     	---        Missed win:     	---       	Black=1      Mistake:       	White=2     	Black=3      Inaccurate:     	White=4     	Black=3      OK:         	White=24    	Black=25     Best:        	White=5     	Black=2      Strong:       	White=1     	Black=1} 1/2-1/2

[Event "Frauenbundesliga 2024-25"]
[Site "Germany"]
[Date "2025.01.25"]
[Round "3.2"]
[White "Van Foreest, Machteld"]
[Black "Schleining, Zoya"]
[Result "1-0"]
[Annotator "TA"]
[ECO "C42"]
[WhiteElo "2312"]
[BlackElo "2323"]
[PlyCount "79"]
[EventDate "2024.11.06"]
[EventType "team-tourn"]
[EventCountry "GER"]
[SourceTitle "playchess.com"]
[Source "ChessBase"]
[SourceQuality "1"]
[WhiteTeam "SG Solingen"]
[BlackTeam "Schachfreunde Deizisau"]
[TimeControl "40/5400+30:1800+30"]

{[%evp 9,79,22,21,29,32,35,24,0,0,6,3,-28,25,33,156,155,153,156,164,168,153,162,160,160,186,180,184,172,164,170,170,173,165,117,122,117,123,106,129,133,126,112,126,126,120,128,192,195,183,152,177,175,167,81,153,0,0,0,189,83,555,570,566,520,631,626,614,602,727,727,612,460]} 1. e4 {[%emt 0:00:06]} e5 {[%emt 0:00:05]} 2. Nf3 {[%emt 0:00:22][%cal Bg1f3,Bf3d4,Bd4b5][%mdl 32]} Nc6 {[%emt 0:00:07]} 3. Nc3 {[%emt 0:00:14][%cal Bb1c3,Bc3d5,Bd5c7][%mdl 32]} Nf6 {[%emt 0:00:16]} 4. h3 {[%emt 0:00:06]} d6 {[%emt 0:01:11]} 5. d4 {[%emt 0:02:32]} exd4 {[%emt 0:05:19]} 6. Nxd4 {[%emt 0:00:16] C42: Petroff Defence: 3 Nxe5 and unusual White 3rd moves.} g6 {[%emt 0:00:20]} 7. Bg5 {[%emt 0:07:19]} Bg7 {[%emt 0:01:26]} 8. Nd5 {[%emt 0:14:06] White has an edge.} O-O $146 {[%emt 0:08:02]} (8... a6 9. c3 Be6 10. Nxe6 fxe6 11. Nf4 Kf7 12. Bc4 Re8 13. O-O Qd7 14. Qe2 Ne5 {0-1 Galdunts,S (2475)-Miles,A (2615) Bad Woerishofen op 11th 1995 (8)}) 9. Nb5 {[%emt 0:04:59]} Be6 $1 {[%emt 0:15:06]} (9... Re8 $6 10. Bd3 $16 (10. Nbxc7 Rxe4+ 11. Be2 Nd4 $17)) 10. Ndxc7 {[%emt 0:12:36] [#]} h6 $1 {[%emt 0:10:36]} 11. Be3 {[%emt 0:10:12]} (11. Bxf6 Qxf6) 11... Nxe4 {[%emt 0:05:54]} (11... a6 $1 $14) 12. Bd3 $1 $36 {[%emt 0:00:41][%mdl 2048] White is on the roll.} Nc5 {[%emt 0:01:53][%cal Oa7a6]} 13. Nxa8 {[%emt 0:01:56]} Qa5+ {[%emt 0:01:42] [#]} 14. Qd2 $1 {[%emt 0:09:06]} (14. c3 $6 Nxd3+ 15. Qxd3 Rxa8 $14) 14... Nxd3+ {[%emt 0:06:27]} 15. cxd3 {[%emt 0:00:05]} Qxb5 {[%emt 0:00:26]} 16. Nc7 {[%emt 0:00:04]} Qxb2 {[%emt 0:00:31]} 17. Qxb2 {[%emt 0:00:24]} Bxb2 {[%emt 0:00:06]} 18. Nxe6 {[%emt 0:03:20]} fxe6 {[%emt 0:00:09]} 19. Rb1 {[%emt 0:00:04]} Bc3+ {[%emt 0:00:07]} 20. Kd1 {[%emt 0:07:02]} Rf7 {[%emt 0:01:05]} 21. f3 {[%emt 0:04:48]} (21. Bxh6 $18 Rxf2 22. Rxb7) 21... h5 {[%emt 0:01:33]} 22. Ke2 {[%emt 0:02:15]} Bd4 {[%emt 0:19:07]} 23. Rhc1 {[%emt 0:01:52][%cal Oc1c6]} e5 {[%emt 0:05:29]} 24. Bxd4 {[%emt 0:00:22]} Nxd4+ {[%emt 0:00:36][%mdl 4096] Endgame KRR-KRN} 25. Ke3 {[%emt 0:02:17]} Kg7 {[%emt 0:02:02]} 26. Rc8 {[%emt 0:00:55]} Kf6 {[%emt 0:00:52]} 27. Rb8 {[%emt 0:01:02]} Rc7 {[%emt 0:02:17]} (27... Nf5+ $16 28. Kd2 b6) 28. R1xb7 {[%emt 0:02:12]} Rc2 {[%emt 0:00:51][%csl Gd4][%cal Rc2e2]} 29. Ke4 {[%emt 0:04:23] Rf8+ would now be deadly.} (29. Rxa7 $2 Re2#) 29... Rxa2 {[%emt 0:01:19]} 30. Rf8+ {[%emt 0:02:38]} Ke6 {[%emt 0:01:59][%cal Ra2e2]} 31. Re8+ {[%emt 0:00:05]} Kf6 {[%emt 0:00:04]} 32. Rf8+ {[%emt 0:01:25]} Ke6 {[%emt 0:00:01][%cal Ra2e2]} 33. Re8+ {[%emt 0:00:05]} Kf6 {[%emt 0:00:05]} 34. Kd5 {[%emt 0:01:26]} (34. Rd7 $18 {is more deadly.} Ra4 35. Kd5 (35. Rxd6+ Kf7 $14) 35... Ra5+ 36. Kxd6) 34... Rxg2 $2 {[%emt 0:04:06][%mdl 8192] Loses the game.} (34... Kg5 $16 {is more resistant.}) 35. f4 $18 {[%emt 0:01:20] White is clearly winning.} ({Less strong is} 35. Kxd6 Rg3 $18) 35... exf4 {[%emt 0:02:22][%cal Be5f4,Bf4f3,Bf3f2][%mdl 32]} 36. Kxd4 {[%emt 0:00:35]} Rh2 {[%emt 0:00:41]} 37. Rb5 {[%emt 0:01:05]} Kg7 {[%emt 0:01:45]} 38. Re4 {[%emt 0:00:59]} f3 {[%emt 0:00:27]} 39. h4 {[%emt 0:01:16]} f2 {[%emt 0:00:10]} 40. Rb7+ {[%emt 0:00:02] Weighted Error Value: White=0.18 (very precise) /Black=0.35  Loses game:     	---       	Black=2      Mistake:       	White=2     	Black=3      Inaccurate:     	White=1     	Black=1      OK:         	White=13    	Black=10     Best:        	White=2     	Black=3      Strong:       	White=1     	Black=1} 1-0

[Event "Frauenbundesliga 2024-25"]
[Site "Germany"]
[Date "2025.01.25"]
[Round "3.2"]
[White "Peglau, Dora"]
[Black "Unuk, Laura"]
[Result "1/2-1/2"]
[Annotator "TA"]
[ECO "C11"]
[WhiteElo "2022"]
[BlackElo "2312"]
[PlyCount "123"]
[EventDate "2024.11.06"]
[EventType "team-tourn"]
[EventCountry "GER"]
[SourceTitle "playchess.com"]
[Source "ChessBase"]
[SourceQuality "1"]
[WhiteTeam "Dippoldiswalde"]
[BlackTeam "Harksheide"]
[TimeControl "40/5400+30:1800+30"]

{[%evp 14,123,28,0,-22,-36,30,26,23,21,21,0,0,0,2,30,147,-89,-81,-77,-72,-91,-67,-60,-22,-16,-20,-60,-41,-50,-18,-56,0,0,0,0,57,0,50,53,81,84,128,141,214,204,216,110,195,171,197,202,185,43,31,31,39,50,45,15,15,8,28,0,53,8,12,0,16,16,17,18,10,0,0,0,14,1,10,0,0,0,0,0,0,-32,-25,-21,0,0,0,0,0,0,0,0,0,-41,0,0,0,0,0,0,0,0,0,0,0,0,0,0]} 1. e4 {[%emt 0:00:03][%cal Be2e4,Be4e5][%mdl 32]} e6 {[%emt 0:03:53]} 2. d4 {[%emt 0:00:21]} d5 {[%emt 0:00:06]} 3. Nc3 {[%emt 0:01:13]} Nf6 {[%emt 0:00:25]} 4. e5 {[%emt 0:00:17]} Nfd7 {[%emt 0:00:06]} 5. Nce2 {[%emt 0:01:05]} c5 {[%emt 0:01:02]} 6. c3 {[%emt 0:00:06]} cxd4 {[%emt 0:05:52]} 7. cxd4 {[%emt 0:00:13]} f6 {[%emt 0:00:05]} 8. f4 {[%emt 0:19:09] 8.exf6 is a critical line.} (8. exf6 $142 Nxf6 9. Nf3) 8... fxe5 $11 {[%emt 0:08:54] C11: French: Classical System: 4 e5 and 4 Bg5 dxe4.} 9. fxe5 {[%emt 0:00:47]} Qh4+ {[%emt 0:01:36]} (9... Bb4+ $1 $15 10. Bd2 Qh4+ (10... Bxd2+ 11. Qxd2 Nc6 12. Nf4 $16) 11. g3 Qe4 12. Bxb4 Nc6) 10. Ng3 $1 {[%emt 0:07:44]} (10. g3 $2 Qe4 11. Kf2 Nxe5 $17 (11... Qxh1 12. Bg2 $17)) 10... Bb4+ {[%emt 0:02:40] White has an edge.} 11. Kf2 {[%emt 0:02:49]} O-O+ {[%emt 0:45:43]} (11... Ba5 {simplifies} 12. Nf3 O-O 13. Kg1 Rxf3 14. gxf3 Bb6) 12. Nf3 {[%emt 0:00:44]} Nc6 {[%emt 0:01:29]} 13. Be3 {[%emt 0:02:55]} Ndxe5 {[%emt 0:08:52]} 14. dxe5 {[%emt 0:01:43]} d4 {[%emt 0:03:14] [#]} (14... Nxe5 $11 15. Kg1 Nxf3+ 16. gxf3 Bd7) 15. Kg1 $2 {[%emt 0:03:41]} (15. Bd2 $1 $16 {[%cal Rd2b4] is forced if you want to stay better.}) 15... Rxf3 $146 {[%emt 0:01:51]} (15... dxe3 16. Nxh4 e2 17. Qc2 Nd4 18. Qc4 Rf4 19. Qc7 b6 20. h3 Ba6 21. Bxe2 Nxe2+ 22. Nxe2 Bxe2 23. Nf3 Raf8 24. Kh2 Bxf3 25. gxf3 Rxf3 26. Rhg1 R3f7 27. Qc4 {1-0 Pedersen,O (2100)-Pedersen,A (1988) Tromsoe Bymesterskap 2012 (2)}) 16. Qxf3 {[%emt 0:01:31]} dxe3 {[%emt 0:00:05]} 17. Qe4 {[%emt 0:08:46]} (17. Qxe3 $2 Ba5 $19) 17... Qxe4 {[%emt 0:05:09]} (17... Qg5 {is more complex.} 18. Bd3 g6 19. Ne2 Qxe5 20. h4 Qxe4 21. Bxe4 e5) 18. Nxe4 {[%emt 0:02:22]} Nxe5 {[%emt 0:00:03] And now ...Bd7 would win.} 19. h4 {[%emt 0:07:41]} Ba5 {[%emt 0:02:35]} 20. Be2 {[%emt 0:09:29]} Bb6 {[%emt 0:01:53]} 21. Rc1 {[%emt 0:03:41]} Nc6 {[%emt 0:04:10]} 22. Nd6 {[%emt 0:09:24]} Bd4 {[%emt 0:01:04]} (22... Nd4 $15 23. Bg4 Bd7 24. Nxb7 g6) 23. b4 $11 {[%emt 0:01:49]} Bd7 {[%emt 0:00:28]} 24. b5 {[%emt 0:01:11]} Ne5 {[%emt 0:00:03]} (24... Ne7 $11) 25. Nxb7 {[%emt 0:01:44] White has a queen side majority} (25. Kh2 $14) 25... Rb8 {[%emt 0:01:05]} (25... Rf8 $1 $11 26. h5 Bxb5 27. Bxb5 e2+ 28. Kh2 Ng4+ 29. Kg3 Nf2 30. Bxe2 Be5+ 31. Kh4 Bf6+ 32. Kg3 Be5+) 26. Nd6 $14 {[%emt 0:00:08]} Rb6 {[%emt 0:00:25] [#]} 27. Ne4 {[%emt 0:03:31]} Rb8 {[%emt 0:00:25][%cal Oa7a6]} (27... Bxb5 $2 28. Rc8+ Kf7 29. Bxb5 $18) 28. Kh2 {[%emt 0:01:29]} h5 {[%emt 0:00:24]} (28... Bxb5 $2 29. Bxb5 (29. Rhd1 Bxe2 30. Rxd4 Bh5 $16) 29... g5 30. Be2 $18 (30. Rhd1 Bb2 $18)) (28... Kf7 $16 29. a4 (29. Rhd1 Bb6 $16) 29... Bb6) 29. Rhd1 $18 {[%emt 0:00:51]} ({Inferior is} 29. Bxh5 Rxb5 30. Rb1 Kf8 $11) 29... Bb6 {[%emt 0:00:26]} 30. Nc5 {[%emt 0:02:16]} (30. Bxh5 Bxb5 31. a4 Bxa4 $17) (30. a4 $18) 30... Be8 {[%emt 0:00:38]} (30... Bxb5 $16 31. Bxb5 Ng4+ 32. Kg1 Rc8) 31. a4 {[%emt 0:01:30]} Ng4+ {[%emt 0:00:27]} 32. Bxg4 {[%emt 0:01:07]} hxg4 {[%emt 0:00:02]} 33. Nxe6 {[%emt 0:00:35]} (33. Nd7 $18 Bxd7 34. Rxd7) 33... Bf7 $1 $14 {[%emt 0:00:49]} 34. Nf4 {[%emt 0:03:55]} Re8 {[%emt 0:00:54]} 35. Ne2 {[%emt 0:00:53]} Bb3 {[%emt 0:00:08][%csl LRa4,LRd1]} 36. Rd7 {[%emt 0:00:46][%cal Oa4a5]} Bxa4 {[%emt 0:00:20]} 37. Rd5 {[%emt 0:00:31]} Bb3 {[%emt 0:00:44]} 38. Rg5 {[%emt 0:00:44]} Be6 {[%emt 0:00:37]} ({Better is} 38... Re4 $1 $11) 39. h5 {[%emt 0:00:42]} Kh7 {[%emt 0:00:44]} 40. Rc3 {[%emt 0:00:32]} Re7 {[%emt 0:00:27]} 41. Re5 {[%emt 0:02:19]} Re8 $1 {[%emt 0:09:45]} 42. Kg3 {[%emt 0:08:10]} Bd7 {[%emt 0:08:08]} 43. Rd5 {[%emt 0:01:57]} Re7 {[%emt 0:00:32]} 44. Rc2 {[%emt 0:00:30]} Rf7 45. Nf4 {[%emt 0:00:30]} Ba5 46. Re2 {[%emt 0:00:30] Wards off Be1+} Bc7 47. Rd4 {[%emt 0:00:30]} Bxb5 {A strong pair of Bishops.} 48. Rxe3 {[%emt 0:00:30][%cal Oe3a3]} Bb6 49. Ree4 {[%emt 0:00:30][%cal Of4e6]} Bxd4 50. Rxd4 $15 {[%emt 0:00:30][%mdl 4096] Endgame KRB-KRN. Black is a pawn up.} Bd7 51. Ng6 {[%emt 0:00:30] And now Ne5 would win.} Bf5 $1 52. Ne5 {[%emt 0:00:30]} Rc7 {[%emt 0:04:30]} 53. Nxg4 {[%emt 0:00:30]} Rc5 54. Ne3 {[%emt 0:00:30]} Be6 55. Rd3 {[%emt 0:00:30]} Bf7 56. Rd7 {[%emt 0:00:30][%csl LRa7,LRf7] The position is equal.} Bxh5 57. Rxa7 {[%emt 0:00:30]} Bg6 58. Kf4 {[%emt 0:00:30]} Rb5 {[%emt 0:03:00]} 59. Ra4 {[%emt 0:00:30]} Be8 60. Rd4 {[%emt 0:00:30]} Ra5 61. g3 {[%emt 0:00:30]} Bg6 {[%emt 0:01:30]} 62. Rb4 {[%emt 0:00:30] Black defended with fortune.   Weighted Error Value: White=0.22 (precise) /Black=0.20 (precise)   Mistake:       	White=4     	Black=8      Inaccurate:     	White=7     	Black=5      OK:         	White=21    	Black=18     Best:        	White=3     	Black=2      Strong:       	White=1     	Black=3} 1/2-1/2

[Event "Frauenbundesliga 2024-25"]
[Site "Germany"]
[Date "2025.01.25"]
[Round "3.3"]
[White "Narva, Mai"]
[Black "Schneider, Jana"]
[Result "0-1"]
[Annotator "TA"]
[ECO "D36"]
[WhiteElo "2398"]
[BlackElo "2260"]
[PlyCount "70"]
[EventDate "2024.11.06"]
[EventType "team-tourn"]
[EventCountry "GER"]
[SourceTitle "playchess.com"]
[Source "ChessBase"]
[SourceQuality "1"]
[WhiteTeam "Baden-Baden"]
[BlackTeam "Bad Koenigshofen"]
[TimeControl "40/5400+30:1800+30"]

{[%evp 12,70,19,20,15,20,16,12,16,13,16,18,14,19,22,10,19,18,19,-107,-132,-274,-294,-294,-280,-452,-459,-535,-526,-497,-508,-409,-399,-392,-382,-395,-393,-393,-373,-404,-418,-442,-453,-430,-469,-461,-458,-547,-528,-598,-605,-563,-558,-712,-715,-689,-714,-690,-672,-707,-692]} 1. d4 {[%emt 0:00:05]} Nf6 {[%emt 0:00:32]} 2. c4 {[%emt 0:00:12]} e6 {[%emt 0:00:06]} 3. Nc3 {[%emt 1:31:43]} d5 {[%emt 0:00:13]} 4. cxd5 {[%emt 0:00:00]} exd5 {[%emt 0:00:09]} 5. Bg5 {[%emt 0:00:00]} c6 {[%emt 0:03:34]} 6. Qc2 {[%emt 0:00:00]} Bd6 {[%emt 0:03:05] Recently 6...h6 got a lot of attention.} 7. e3 {[%emt 0:00:00]} O-O {[%emt 0:00:27] D36: Queen's Gambit Declined: Exchange Variation: Main line (5 Bg5 c6 6 Qc2).} 8. Bd3 {[%emt 0:00:00][%cal Od3h7] next Bxh7+! is good for White.} h6 {[%emt 0:00:22]} 9. Bh4 {[%emt 0:00:00]} Re8 {[%emt 0:00:22] The position is equal.} 10. Nge2 {[%emt 0:00:00]} a5 {[%emt 0:00:37]} 11. h3 {[%emt 0:00:00]} Na6 {[%emt 0:02:27][%cal Bb8a6,Ba6c7,Bc7e6][%mdl 32]} 12. a3 {[%emt 0:00:00] Wards off Nb4} Nc7 {[%emt 0:00:16]} 13. O-O {[%emt 0:00:00]} Ne6 {[%emt 0:00:36]} 14. f3 {[%emt 0:00:00]} Ng5 {[%emt 0:07:08]} 15. e4 {[%emt 0:00:00]} (15. f4 $11 {keeps the balance.} Nxh3+ 16. gxh3 Rxe3 17. Bh7+ Kh8 18. Bf5) 15... Nfxe4 $1 $17 {[%emt 0:03:00] Black is more active.} 16. fxe4 {[%emt 0:00:00] [#] Now White is beyond hope.} (16. Bxe4 $17 dxe4 (16... Nxh3+ 17. gxh3 Qxh4 18. Bh7+ Kh8 19. Bf5 $15) 17. Bxg5 Qxg5 18. Nxe4) 16... Nxh3+ $1 $19 {[%emt 0:00:11][%mdl 512]} 17. gxh3 {[%emt 0:00:00]} Qxh4 {[%emt 0:00:04]} 18. e5 $2 {[%emt 0:00:00] [#]} (18. Rf2 Bxh3 (18... Qxh3 19. e5 $14) 19. Qb3) 18... Rxe5 $1 {[%emt 0:00:47][%mdl 512]} 19. Bh7+ {[%emt 0:00:00]} (19. dxe5 Bc5+) 19... Kh8 {[%emt 0:01:24]} 20. dxe5 {[%emt 0:00:00]} Bc5+ {[%emt 0:01:01]} 21. Nd4 {[%emt 0:00:00][%cal Oc3e2] Black must now prevent Nce2!.} Bxd4+ {[%emt 0:03:39]} 22. Kh1 {[%emt 0:00:00]} Qxh3+ $146 {[%emt 0:22:05]} (22... Bxh3 23. Qh2 Bxe5 24. Qxe5 Bxf1+ 25. Kg1 Bh3 26. Bd3 f6 27. Qe2 d4 28. Re1 Qg3+ {0-1 Agibileg,U (2441)-Warmerdam,M (2633) Titled Tuesday intern op 29th Aug Early blitz 2023 (6)}) 23. Qh2 {[%emt 0:00:00]} Qxh2+ {[%emt 0:05:01]} ({Weaker is} 23... Kxh7 24. Qxh3 Bxh3 25. Rxf7 $19) ({Inferior is} 23... Bxc3 24. bxc3 Qxc3 (24... Kxh7 25. Rxf7 Qg4 26. Rg1 $11) 25. Bc2 $11) (23... Bxe5 24. Qxh3 Bxh3 25. Bd3 Bxf1 26. Rxf1 $19) 24. Kxh2 {[%emt 0:00:00]} Bxe5+ {[%emt 0:00:12] This pair of bishops is nice.} 25. Kg1 {[%emt 0:00:00]} Kxh7 {[%emt 0:00:31]} 26. Rxf7 {[%emt 0:00:00]} Bg4 {[%emt 0:05:38] Black is clearly winning.} 27. Re1 {[%emt 0:00:00]} Re8 {[%emt 0:03:17]} 28. Kg2 {[%emt 0:00:00]} b5 {[%emt 0:01:16]} 29. Nb1 {[%emt 0:00:00]} Re6 {[%emt 0:07:28]} 30. b3 {[%emt 0:00:00] [#]} Rg6 $1 {[%emt 0:03:12]} 31. Kf1 {[%emt 0:00:00]} (31. Rf2 Be6+) 31... Bd4 {[%emt 0:06:28] White must now prevent ...Bh5.} 32. Nd2 {[%emt 0:00:00]} Bc3 {[%emt 0:00:37]} 33. Rf2 {[%emt 0:00:00]} Bh3+ {[%emt 0:00:18]} 34. Ke2 {[%emt 0:00:00]} Re6+ {[%emt 0:00:05]} 35. Kd1 {[%emt 0:00:00]} Bg4+ {[%emt 0:21:52] Weighted Error Value: White=0.46/Black=0.02 (flawless)   Mistake:       	White=3     	---        OK:         	White=8     	Black=16     Best:        	White=2     	Black=1      Strong:       	---       	Black=1      Brilliant:      	---       	Black=2} 0-1